bitfinex/quotes_SOLUSD_20240822
["timestamp","ask_amount","ask_price","bid_price","bid_amount"]
[1724369577462,23.4022,143.63,143.59,6.9642]
[1724369579467,16.4398,143.63,143.59,6.9642]
[1724369580041,17.65353667,143.63,143.59,6.9642]
[1724369580758,24.61583667,143.63,143.58,24.3758]
[1724369580960,33.76997715,143.63,143.59,7.33252764]
[1724369581158,33.76997715,143.63,143.58,24.3758]
[1724369581555,33.76997715,143.63,143.59,7.33252927]
[1724369581861,33.76997715,143.63,143.58,24.3758]
[1724369582066,32.55624048,143.63,143.59,7.33255954]
[1724369582249,32.55624048,143.63,143.58,24.3758]
[1724369582561,32.55624048,143.63,143.59,7.33255628]
[1724369582741,32.55624048,143.63,143.58,24.3758]
[1724369582941,32.55624048,143.63,143.59,7.33248336]
[1724369583170,32.55624048,143.63,143.58,24.3758]
[1724369583467,32.55624048,143.63,143.59,7.33245441]
[1724369583669,32.55624048,143.63,143.58,24.3758]
[1724369583844,32.55624048,143.63,143.59,7.3325365]
[1724369584166,32.55624048,143.63,143.59,6.9641]
[1724369584167,23.4021,143.63,143.59,6.9641]
[1724369585146,13.5495,143.64,143.6,6.9637]
[1724369587666,22.70364048,143.64,143.6,6.9637]
[1724369592879,13.5495,143.64,143.6,6.9637]
[1724369594579,7.08789,143.63,143.59,6.9641]
[1724369594790,25.55002048,143.63,143.58,17.4112]
[1724369594982,6.209,143.6,143.56,6.9655]
[1724369595284,13.1728,143.6,143.57,7.33201242]
[1724369595459,13.1728,143.6,143.58,7.33201242]
[1724369595658,13.1728,143.6,143.56,6.9655]
[1724369595974,13.1728,143.6,143.57,7.33223387]
[1724369596283,6.9644,143.59,143.55,24.381]
[1724369596468,6.9644,143.59,143.56,7.33228569]
[1724369596669,6.9644,143.59,143.57,7.33228569]
[1724369596990,6.9644,143.59,143.55,24.381]
[1724369597191,6.9644,143.59,143.56,11.35952813]
[1724369597401,6.9644,143.59,143.57,11.35952813]
[1724369597562,6.9644,143.59,143.55,24.381]
[1724369597758,6.9644,143.59,143.56,11.35944067]
[1724369597960,6.9644,143.59,143.57,11.35944067]
[1724369598191,6.9644,143.59,143.55,24.381]
[1724369598365,6.9644,143.59,143.56,11.36085056]
[1724369598566,6.9644,143.59,143.57,11.36085056]
[1724369598766,6.9644,143.59,143.55,24.381]
[1724369598993,6.9644,143.59,143.56,11.3609066]
[1724369599190,6.9644,143.59,143.57,11.3609066]
[1724369599395,6.9644,143.59,143.55,24.381]
[1724369599591,6.9644,143.59,143.56,11.36145407]
[1724369599781,6.9644,143.59,143.57,11.36145407]
[1724369599994,6.9644,143.59,143.55,24.381]
[1724369600184,6.9644,143.59,143.56,11.36248358]
[1724369600385,6.9644,143.59,143.57,4.02833675]
[1724369600593,6.9644,143.59,143.55,24.381]
[1724369600895,6.9644,143.59,143.56,11.36246755]
[1724369601082,6.9644,143.59,143.57,11.36246755]
[1724369601269,6.9644,143.59,143.55,24.381]
[1724369601473,6.9644,143.59,143.56,7.33415816]
[1724369601670,6.9644,143.59,143.57,4.02822049]
[1724369601873,6.9644,143.59,143.55,24.381]
[1724369602096,6.9644,143.59,143.56,11.36237865]
[1724369602285,6.9644,143.59,143.55,24.381]
[1724369602484,6.9644,143.59,143.56,11.36244849]
[1724369602684,6.9644,143.59,143.55,24.381]
[1724369602899,6.9644,143.59,143.56,11.36244916]
[1724369603099,6.9644,143.59,143.55,24.381]
[1724369603301,6.9644,143.59,143.56,11.36237865]
[1724369603493,6.9644,143.59,143.55,24.381]
[1724369603801,6.9644,143.59,143.56,11.36237563]
[1724369603994,6.9644,143.59,143.55,24.381]
[1724369604194,6.9644,143.59,143.56,11.36244183]
[1724369604394,6.9644,143.59,143.55,24.381]
[1724369604594,6.9644,143.59,143.56,11.36244916]
[1724369604808,1.21408072,143.58,143.55,24.381]
[1724369604994,1.21408072,143.58,143.56,11.36244985]
[1724369605300,1.21408072,143.58,143.55,24.381]
[1724369605603,1.21408072,143.58,143.56,7.33416927]
[1724369605806,1.21408072,143.58,143.55,24.381]
[1724369605974,1.21408072,143.58,143.56,14.29966732]
[1724369606178,1.21408072,143.58,143.56,6.9655]
[1724369606481,1.21408072,143.58,143.57,7.33410383]
[1724369606900,0.71408072,143.58,143.57,7.33410383]
[1724369607087,6.209,143.6,143.57,7.33410383]
[1724369607288,6.209,143.6,143.56,6.9655]
[1724369610805,13.1732,143.6,143.56,6.9655]
[1724369620222,6.209,143.6,143.57,6.9652]
[1724369631804,6.209,143.6,143.58,6.9647]
[1724369634108,6.209,143.6,143.59,6.9642]
[1724369634315,32.26144048,143.63,143.58,6.9646]
[1724369634631,6.9628,143.62,143.58,6.9646]
[1724369636327,6.9633,143.61,143.57,24.3776]
[1724369636936,6.9629,143.62,143.57,24.3776]
[1724369637326,6.9638,143.6,143.56,6.9656]
[1724369637528,6.9638,143.6,143.57,7.32693385]
[1724369637831,6.9638,143.6,143.56,6.9656]
[1724369638019,6.9638,143.6,143.57,7.3270238]
[1724369638221,6.9638,143.6,143.57,7.32702379]
[1724369638418,13.4848,143.6,143.56,6.9656]
[1724369638817,13.4848,143.6,143.57,7.32704678]
[1724369639019,6.521,143.6,143.54,17.4157]
[1724369639223,6.521,143.6,143.55,7.33002572]
[1724369639527,13.4849,143.6,143.56,7.33002572]
[1724369639718,13.4849,143.6,143.57,7.33002572]
[1724369639916,13.4849,143.6,143.55,6.9658]
[1724369640219,13.4849,143.6,143.56,14.29436426]
[1724369640419,13.4849,143.6,143.57,7.32876426]
[1724369640622,13.4849,143.6,143.56,6.9656]
[1724369640822,13.4849,143.6,143.57,7.32875293]
[1724369641023,13.4849,143.6,143.56,6.9656]
[1724369641328,13.4849,143.6,143.57,7.32874863]
[1724369641523,13.4849,143.6,143.56,6.9656]
[1724369642730,6.521,143.6,143.56,6.9656]
[1724369642930,6.521,143.6,143.57,14.2938848]
[1724369643247,6.521,143.6,143.57,6.9652]
[1724369645949,6.521,143.6,143.58,6.9646]
[1724369646111,6.9629,143.62,143.58,6.9646]
[1724369648433,22.7565,143.63,143.58,17.4115]
[1724369648629,22.7565,143.63,143.6,6.9637]
[1724369649540,22.7565,143.63,143.58,17.4115]
[1724369649541,38.87304048,143.63,143.59,6.9641]
[1724369650041,38.87304048,143.63,143.58,24.3761]
[1724369650752,31.91064048,143.63,143.58,17.4115]
[1724369650950,6.9633,143.61,143.58,17.4115]
[1724369651648,16.11744048,143.61,143.58,17.4115]
[1724369652751,9.15414048,143.61,143.58,17.4115]
[1724369652918,9.15414048,143.61,143.58,24.3762]
[1724369654347,16.11744048,143.61,143.58,17.4115]
[1724369655251,16.11834048,143.59,143.55,24.3811]
[1724369655555,9.15414048,143.59,143.55,17.4151]
[1724369656718,0.12549,143.62,143.55,17.4151]
[1724369656719,9.15414048,143.61,143.55,17.4151]
[1724369656915,7.08929,143.6,143.56,14.2954676]
[1724369657119,7.08929,143.6,143.56,6.9656]
[1724369657351,16.11774048,143.61,143.57,6.9651]
[1724369657558,6.9636,143.61,143.57,6.9651]
[1724369658134,6.9638,143.6,143.56,6.9656]
[1724369661451,16.11754048,143.61,143.57,6.9652]
[1724369663030,6.9639,143.6,143.55,24.3808]
[1724369663320,6.9639,143.6,143.56,7.32955093]
[1724369663524,6.9639,143.6,143.55,24.3808]
[1724369663756,6.9639,143.6,143.56,7.32955093]
[1724369663932,6.9639,143.6,143.55,24.3808]
[1724369664133,6.9639,143.6,143.56,7.32955093]
[1724369664357,6.9639,143.6,143.55,24.3808]
[1724369664851,6.9644,143.59,143.55,24.3808]
[1724369665431,18.61999015,143.63,143.55,39.60074048]
[1724369665629,18.61999015,143.63,143.62,6.9628]
[1724369665630,1.21389015,143.63,143.62,6.9628]
[1724369665829,6.1484,143.69,143.62,11.35463831]
[1724369666030,9.15414048,143.68,143.62,6.9627]
[1724369666369,6.1484,143.69,143.6,9.15414048]
[1724369666526,6.1484,143.69,143.61,7.32844133]
[1724369666727,6.1484,143.69,143.62,7.32844133]
[1724369666946,6.1484,143.69,143.64,6.9614]
[1724369667352,9.15414048,143.68,143.63,24.3671]
[1724369668064,9.15414048,143.68,143.64,6.9616]
[1724369668760,0.12549,143.67,143.64,6.9616]
[1724369669437,0.12549,143.67,143.65,6.9611]
[1724369674061,9.15414048,143.68,143.65,6.9611]
[1724369674263,6.1484,143.69,143.65,6.9611]
[1724369674469,0.12549,143.68,143.65,6.9611]
[1724369676675,6.1484,143.69,143.66,6.9608]
[1724369695298,6.1484,143.69,143.65,17.4028]
[1724369695697,6.1484,143.69,143.67,6.9603]
[1724369696588,6.1484,143.69,143.61,15.2399]
[1724369696795,6.1484,143.69,143.62,17.4065]
[1724369697198,13.1078,143.69,143.65,6.9613]
[1724369701389,6.1484,143.69,143.66,6.9607]
[1724369702605,13.1078,143.69,143.65,6.9612]
[1724369702809,9.15414048,143.68,143.65,6.9612]
[1724369704010,9.15414048,143.68,143.64,24.3659]
[1724369704997,9.15414048,143.68,143.65,6.9613]
[1724369712224,9.15414048,143.68,143.61,17.4072]
[1724369712424,6.1484,143.69,143.62,7.32536716]
[1724369712425,6.9614,143.65,143.62,7.32536716]
[1724369712730,22.39443048,143.64,143.62,7.32518915]
[1724369712934,22.39443048,143.64,143.58,17.4114]
[1724369712935,6.9625,143.63,143.59,7.32596215]
[1724369713099,9.15414048,143.61,143.58,24.376]
[1724369713303,9.15414048,143.61,143.58,17.4114]
[1724369713808,9.15414048,143.61,143.58,24.376]
[1724369715338,16.11744048,143.61,143.56,6.9656]
[1724369715643,9.15414048,143.59,143.55,24.381]
[1724369715855,16.24353048,143.6,143.56,6.9657]
[1724369716325,9.27963048,143.6,143.56,6.9657]
[1724369716916,16.24363048,143.6,143.55,24.3811]
[1724369717120,0.12549,143.59,143.55,24.3811]
[1724369719334,6.15099,143.59,143.55,24.3811]
[1724369723112,6.0255,143.59,143.55,24.3811]
[1724369724625,6.0255,143.59,143.56,6.9655]
[1724369725518,6.0255,143.59,143.57,6.9652]
[1724369726247,6.0255,143.59,143.56,6.9655]
[1724369726917,6.0255,143.59,143.57,6.9652]
[1724369729517,6.0255,143.59,143.56,6.9655]
[1724369730743,6.0255,143.59,143.51,34.8387]
[1724369730941,6.0255,143.59,143.52,11.35260091]
[1724369731651,12.9898,143.59,143.55,6.9658]
[1724369734224,6.0255,143.59,143.55,6.9658]
[1724369737630,6.0255,143.59,143.56,6.9656]
[1724369742045,12.9898,143.59,143.55,6.9661]
[1724369744030,6.0255,143.59,143.54,24.383]
[1724369744237,12.9898,143.59,143.55,6.966]
[1724369748461,16.11894048,143.58,143.54,17.4164]
[1724369748665,0.12549,143.57,143.54,17.4164]
[1724369749535,9.15414048,143.56,143.52,6.9675]
[1724369749988,16.11984048,143.56,143.52,6.9675]
[1724369750384,6.9662,143.55,143.51,24.3875]
[1724369752085,16.11984048,143.56,143.52,6.9676]
[1724369752380,6.9657,143.56,143.52,6.9676]
[1724369753767,31.93894048,143.55,143.51,17.4196]
[1724369753971,7.09219,143.54,143.51,17.4196]
[1724369762895,22.7848,143.55,143.51,17.4196]
[1724369763065,6.5688,143.55,143.53,6.967]
[1724369765087,23.1808,143.58,143.54,6.9665]
[1724369765404,16.11944048,143.57,143.53,24.3844]
[1724369765600,0.12549,143.56,143.53,17.4174]
[1724369765802,9.15414048,143.55,143.53,17.4174]
[1724369769792,16.12034048,143.55,143.51,6.9679]
[1724369780111,16.24533048,143.56,143.52,6.9675]
[1724369788620,6.9662,143.55,143.51,6.968]
[1724369788927,13.5398,143.55,143.51,6.968]
[1724369793299,9.15414048,143.54,143.47,17.4244]
[1724369793620,16.12194048,143.52,143.48,7.32793878]
[1724369793800,16.12194048,143.52,143.47,24.394]
[1724369794003,16.12194048,143.52,143.48,6.9695]
[1724369800820,9.15414048,143.52,143.43,16.61976708]
[1724369801018,6.9687,143.5,143.46,6.97]
[1724369801334,7.09369,143.51,143.47,7.32740432]
[1724369801626,7.09369,143.51,143.46,6.97]
[1724369801805,7.09369,143.51,143.47,7.32840493]
[1724369802006,7.09369,143.51,143.46,6.97]
[1724369802215,7.09369,143.51,143.47,7.32838107]
[1724369802423,7.09369,143.51,143.46,6.97]
[1724369802627,7.09369,143.51,143.47,7.32852035]
[1724369802833,7.09369,143.51,143.46,6.97]
[1724369803040,13.19299,143.51,143.47,7.32888415]
[1724369803336,13.19299,143.51,143.46,6.97]
[1724369803642,13.19299,143.51,143.47,7.32863312]
[1724369803823,13.19299,143.51,143.46,6.97]
[1724369804024,13.19299,143.51,143.47,14.29848988]
[1724369804321,13.19299,143.51,143.47,6.97]
[1724369805337,13.19299,143.51,143.46,14.29931113]
[1724369805541,13.19299,143.51,143.46,6.9704]
[1724369805914,13.19299,143.51,143.46,14.29956807]
[1724369806115,13.19299,143.51,143.46,6.9704]
[1724369806336,13.19299,143.51,143.46,14.29956807]
[1724369806638,13.19299,143.51,143.46,6.9704]
[1724369806834,13.19299,143.51,143.46,14.29956807]
[1724369807010,13.19299,143.51,143.46,6.9704]
[1724369807211,13.19299,143.51,143.46,14.29956807]
[1724369807509,13.19299,143.51,143.46,6.9704]
[1724369807706,13.19299,143.51,143.46,14.29956807]
[1724369807910,13.19299,143.51,143.46,6.9704]
[1724369808110,6.9686,143.5,143.46,14.29956807]
[1724369808340,6.9686,143.5,143.46,6.9704]
[1724369810943,6.9686,143.5,143.46,18.33607533]
[1724369811236,6.9686,143.5,143.46,6.9704]
[1724369811419,6.9686,143.5,143.46,18.33632582]
[1724369811623,6.9686,143.5,143.46,6.9704]
[1724369811941,6.9686,143.5,143.46,18.33632582]
[1724369812142,13.19309,143.51,143.47,6.9699]
[1724369812942,6.0993,143.51,143.48,8.36341797]
[1724369815418,31.24804048,143.53,143.49,8.36263397]
[1724369815614,20.0,143.52,143.49,8.36263397]
[1724369816237,20.0,143.52,143.48,24.3931]
[1724369820950,26.9676,143.52,143.48,24.3931]
[1724369827456,20.0,143.52,143.49,6.9689]
[1724369827978,20.0,143.52,143.48,24.3931]
[1724369832772,26.9677,143.52,143.48,24.3931]
[1724369836181,26.9677,143.52,143.49,11.36700771]
[1724369836475,26.9677,143.52,143.48,24.3931]
[1724369836642,26.9677,143.52,143.49,11.36792266]
[1724369836848,26.9677,143.52,143.48,24.3931]
[1724369837050,26.9677,143.52,143.49,11.36792589]
[1724369837249,26.9677,143.52,143.48,24.3931]
[1724369837450,26.9677,143.52,143.49,11.36805603]
[1724369837749,26.9677,143.52,143.48,24.3931]
[1724369837950,26.9677,143.52,143.49,7.33403914]
[1724369838184,20.0,143.52,143.48,17.4237]
[1724369838755,20.0,143.52,143.49,7.33406572]
[1724369838957,20.0,143.52,143.48,17.4237]
[1724369839688,20.0,143.52,143.49,7.33405877]
[1724369839857,26.9677,143.52,143.48,24.3932]
[1724369840057,26.9677,143.52,143.49,7.33422681]
[1724369840367,26.9677,143.52,143.48,24.3932]
[1724369840566,26.9677,143.52,143.49,7.33421391]
[1724369840772,26.9677,143.52,143.48,24.3932]
[1724369840977,26.9677,143.52,143.49,7.33425398]
[1724369841174,26.9677,143.52,143.48,24.3932]
[1724369841473,26.9677,143.52,143.49,7.33424237]
[1724369841652,26.9677,143.52,143.48,24.3932]
[1724369841854,26.9677,143.52,143.49,7.33550481]
[1724369842174,26.9677,143.52,143.48,24.3932]
[1724369842382,26.9677,143.52,143.49,7.33623338]
[1724369842568,26.9677,143.52,143.48,24.3932]
[1724369842875,26.9677,143.52,143.49,7.33716031]
[1724369843080,26.9677,143.52,143.48,24.3932]
[1724369843262,26.9677,143.52,143.49,7.33719963]
[1724369843577,26.9677,143.52,143.48,24.3932]
[1724369843785,26.9677,143.52,143.49,7.33721367]
[1724369844083,26.9677,143.52,143.48,24.3932]
[1724369844251,26.9677,143.52,143.49,7.33714666]
[1724369844577,26.9677,143.52,143.48,24.3932]
[1724369844776,26.9677,143.52,143.49,7.33715096]
[1724369844980,26.9677,143.52,143.48,24.3932]
[1724369845190,26.9677,143.52,143.49,7.33675464]
[1724369845489,26.9677,143.52,143.48,24.3932]
[1724369845779,26.9677,143.52,143.49,7.33629848]
[1724369845947,26.9677,143.52,143.48,24.3932]
[1724369846251,26.9677,143.52,143.49,7.33659446]
[1724369846447,26.9677,143.52,143.48,24.3932]
[1724369846653,26.9677,143.52,143.49,7.33465926]
[1724369846853,26.9677,143.52,143.48,24.3932]
[1724369847156,26.9677,143.52,143.49,7.33534344]
[1724369847370,26.9677,143.52,143.48,24.3932]
[1724369847684,26.9677,143.52,143.49,7.33531051]
[1724369847887,26.9677,143.52,143.48,24.3932]
[1724369848177,26.9677,143.52,143.49,7.33592742]
[1724369848382,26.9677,143.52,143.48,24.3932]
[1724369848757,26.9677,143.52,143.49,7.33592547]
[1724369848955,26.9677,143.52,143.48,24.3932]
[1724369849459,20.0,143.52,143.48,17.4237]
[1724369849664,14.78609746,143.55,143.51,6.9681]
[1724369849961,6.9667,143.54,143.5,24.3896]
[1724369850164,13.5723,143.55,143.5,24.3896]
[1724369851895,13.5723,143.55,143.51,6.968]
[1724369852257,6.9667,143.54,143.5,24.3895]
[1724369852685,9.15414048,143.53,143.5,24.3895]
[1724369853191,9.15414048,143.53,143.5,17.421]
[1724369855281,9.15414048,143.53,143.5,24.3895]
[1724369858107,6.9667,143.54,143.5,24.3895]
[1724369865008,6.9672,143.53,143.49,6.9689]
[1724369865230,16.12134048,143.53,143.49,6.9689]
[1724369868910,6.9672,143.53,143.49,6.9689]
[1724369869226,6.9668,143.54,143.5,6.9685]
[1724369870427,22.85193048,143.55,143.5,6.9685]
[1724369870597,20.0,143.54,143.5,6.9685]
[1724369870798,20.0,143.54,143.49,17.4226]
[1724369871605,20.0,143.54,143.51,6.968]
[1724369873427,20.0,143.54,143.5,6.9684]
[1724369881301,26.9667,143.54,143.5,6.9684]
[1724369883433,6.9673,143.53,143.49,17.4226]
[1724369883595,6.9676,143.52,143.49,17.4226]
[1724369893932,22.6012,143.53,143.49,24.3916]
[1724369897911,15.634,143.53,143.5,11.00467213]
[1724369898217,15.634,143.53,143.5,6.9685]
[1724369903119,26.9667,143.54,143.5,6.9685]
[1724369907013,20.0,143.54,143.51,6.9679]
[1724369908345,20.0,143.54,143.5,6.9685]
[1724369913741,6.606,143.55,143.51,18.81280718]
[1724369914050,13.5723,143.55,143.51,24.3874]
[1724369916119,16.12084048,143.54,143.5,6.9684]
[1724369916320,16.12084048,143.54,143.48,17.423]
[1724369916321,6.9674,143.53,143.48,17.423]
[1724369916522,6.9674,143.53,143.49,7.33954522]
[1724369916735,6.9674,143.53,143.48,17.423]
[1724369916920,6.9674,143.53,143.49,7.33955943]
[1724369917121,6.9674,143.53,143.48,17.423]
[1724369917445,6.9674,143.53,143.49,7.33954264]
[1724369917619,6.9674,143.53,143.48,17.423]
[1724369917815,6.9674,143.53,143.49,14.30843834]
[1724369918119,6.9674,143.53,143.49,6.9689]
[1724369918854,6.9674,143.53,143.48,24.3925]
[1724369919056,6.9678,143.52,143.48,24.3925]
[1724369919548,6.3822,143.51,143.48,17.423]
[1724369919731,13.3503,143.51,143.46,6.9705]
[1724369925353,13.3503,143.51,143.47,6.97]
[1724369935177,61.37402048,143.5,143.46,6.9704]
[1724369935478,16.12304048,143.5,143.46,6.9704]
[1724369939573,16.12304048,143.5,143.45,17.4272]
[1724369940749,16.12304048,143.5,143.46,6.9702]
[1724369949497,13.47589,143.51,143.47,6.97]
[1724369949663,0.25098,143.5,143.47,6.97]
[1724369949987,7.21958,143.5,143.46,6.9704]
[1724369953999,16.12334048,143.49,143.45,17.4272]
[1724369954690,17.33713186,143.49,143.45,17.4272]
[1724369960693,16.12334048,143.49,143.45,17.4272]
[1724369960894,17.33712656,143.49,143.45,17.4272]
[1724369962271,8.18298608,143.49,143.45,25.79141927]
[1724369962572,6.9692,143.49,143.45,25.79141927]
[1724369963481,6.9692,143.49,143.45,24.398]
[1724369964301,6.9697,143.48,143.43,6.9716]
[1724369964593,13.4589,143.47,143.43,6.9719]
[1724369965298,13.4589,143.47,143.42,24.4027]
[1724369965299,6.9706,143.46,143.42,24.4027]
[1724369965604,16.12474048,143.46,143.42,24.4027]
[1724369966368,6.9714,143.45,143.39,17.434]
[1724369966679,6.9714,143.45,143.4,18.35219443]
[1724369966887,6.9714,143.45,143.4,6.973]
[1724369968404,6.9714,143.45,143.41,6.9729]
[1724369969006,6.9714,143.45,143.41,6.4729]
[1724369970091,9.15414048,143.46,143.42,6.9725]
[1724369970092,6.9707,143.46,143.42,6.9725]
[1724369970300,20.0,143.45,143.43,6.9719]
[1724369970500,23.1338,143.47,143.43,6.9719]
[1724369978413,6.4888,143.47,143.43,17.4297]
[1724369979093,13.4578,143.5,143.46,6.9705]
[1724369980116,20.0,143.49,143.46,6.9705]
[1724369986616,7.70218901,143.5,143.46,6.9705]
[1724369988494,7.70218901,143.5,143.47,6.97]
[1724369991620,6.4888,143.5,143.49,6.9691]
[1724369992429,6.9672,143.53,143.49,6.9691]
[1724369992722,20.0,143.52,143.49,6.9691]
[1724369998521,20.0,143.52,143.5,6.9685]
[1724369998727,20.0,143.53,143.5,6.9685]
[1724370003818,29.7926,143.54,143.51,6.9678]
[1724370003819,6.3404,143.54,143.51,6.9678]
[1724370005334,6.9661,143.56,143.52,6.9676]
[1724370005531,6.9661,143.56,143.52,8.36093313]
[1724370007438,15.5043,143.57,143.54,6.9666]
[1724370007632,13.4976,143.58,143.54,6.9666]
[1724370008022,20.0,143.57,143.54,6.9666]
[1724370008832,26.9652,143.57,143.53,24.3845]
[1724370009337,26.9652,143.57,143.53,17.4175]
[1724370010040,36.11934048,143.57,143.53,17.4175]
[1724370013351,26.9652,143.57,143.53,17.4175]
[1724370019054,26.9652,143.57,143.53,24.3846]
[1724370024954,1.21305076,143.56,143.53,24.3846]
[1724370025167,26.9652,143.57,143.53,24.3846]
[1724370041453,20.0,143.57,143.53,17.4175]
[1724370041660,1.2130296,143.59,143.53,17.4175]
[1724370041953,7.09049,143.58,143.54,6.9666]
[1724370043980,6.9652,143.57,143.53,24.3845]
[1724370044176,7.09119,143.56,143.53,17.4175]
[1724370045986,9.27963048,143.56,143.5,6.9685]
[1724370046283,6.9663,143.55,143.5,6.9685]
[1724370046479,16.12084048,143.54,143.5,6.9685]
[1724370047387,6.9673,143.53,143.49,24.3917]
[1724370050582,1.33850478,143.56,143.49,24.3917]
[1724370050786,9.27963048,143.55,143.49,24.3917]
[1724370050988,26.9671,143.54,143.49,24.3917]
[1724370051661,6.9671,143.53,143.49,24.3917]
[1724370052991,6.9671,143.53,143.49,17.4227]
[1724370053365,16.12124048,143.53,143.49,24.3917]
[1724370054589,7.09319,143.52,143.48,15.4681]
[1724370055665,9.15414048,143.53,143.48,15.4681]
[1724370055866,6.9672,143.53,143.48,32.8915]
[1724370056094,26.9667,143.54,143.49,6.9686]
[1724370056597,6.9673,143.53,143.49,6.9686]
[1724370058375,6.9673,143.53,143.48,39.861]
[1724370060694,16.12144048,143.53,143.48,39.861]
[1724370062902,6.9676,143.52,143.48,39.861]
[1724370065786,16.12144048,143.53,143.48,39.861]
[1724370066482,17.3352761,143.53,143.49,6.969]
[1724370067797,8.18113562,143.53,143.49,6.969]
[1724370070196,1.21383562,143.53,143.5,17.4211]
[1724370071380,8.18103562,143.53,143.5,17.4211]
[1724370074312,1.21383562,143.53,143.5,24.3896]
[1724370074511,6.9667,143.54,143.5,24.3896]
[1724370074809,8.17979733,143.54,143.5,24.3896]
[1724370081015,6.9667,143.54,143.5,24.3896]
[1724370083491,16.12134048,143.53,143.49,6.969]
[1724370094811,6.9672,143.53,143.5,1.39278784]
[1724370095129,20.0,143.56,143.5,8.36128784]
[1724370095130,6.9667,143.54,143.5,8.36128784]
[1724370096224,6.9667,143.54,143.5,6.9685]
[1724370096621,6.9667,143.54,143.5,8.36200635]
[1724370098322,6.9667,143.54,143.5,6.9685]
[1724370101411,8.18034399,143.54,143.5,6.9685]
[1724370104623,8.18034399,143.54,143.49,24.3914]
[1724370104821,17.33448447,143.54,143.49,24.3914]
[1724370109018,6.9673,143.53,143.49,24.3914]
[1724370109922,6.9673,143.53,143.49,17.4225]
[1724370112832,6.9673,143.53,143.49,24.3915]
[1724370117517,6.9665,143.55,143.51,6.9681]
[1724370117719,20.0,143.54,143.51,6.9681]
[1724370118029,36.12084048,143.54,143.5,6.9686]
[1724370118556,6.9672,143.53,143.49,24.3912]
[1724370124423,6.9676,143.52,143.49,17.4225]
[1724370124625,6.9682,143.51,143.47,6.97]
[1724370124952,9.15414048,143.52,143.46,24.3961]
[1724370124953,6.9687,143.5,143.46,24.3961]
[1724370125165,6.9687,143.5,143.47,11.37236574]
[1724370125334,16.12284048,143.5,143.46,24.3961]
[1724370129238,6.9682,143.51,143.47,6.97]
[1724370129439,6.9677,143.52,143.47,1.00332998]
[1724370130229,6.9677,143.52,143.48,6.9694]
[1724370130465,6.9677,143.52,143.47,7.97322998]
[1724370132357,6.9677,143.52,143.47,6.9699]
[1724370133560,6.9677,143.52,143.48,6.9694]
[1724370134653,6.9677,143.52,143.47,6.9699]
[1724370139149,6.9677,143.52,143.48,1.39374183]
[1724370139638,6.9677,143.52,143.47,6.9699]
[1724370140250,23.5269,143.53,143.49,6.9689]
[1724370140453,20.0,143.52,143.49,6.9689]
[1724370141342,20.0,143.52,143.48,24.3929]
[1724370141747,20.0,143.52,143.45,16.5213]
[1724370141748,9.15414048,143.5,143.46,6.9704]
[1724370144563,10.36779944,143.5,143.46,6.9704]
[1724370145560,17.33639944,143.5,143.46,6.9704]
[1724370150264,1.21365896,143.5,143.47,6.97]
[1724370150451,6.9682,143.51,143.47,6.97]
[1724370153851,26.9677,143.52,143.48,6.9695]
[1724370157179,26.4677,143.52,143.48,6.9695]
[1724370160689,16.12244048,143.51,143.47,24.3947]
[1724370161452,13.1237,143.5,143.46,6.9705]
[1724370166523,6.1551,143.5,143.47,6.97]
[1724370180535,13.124,143.5,143.46,17.4262]
[1724370181038,13.124,143.5,143.46,24.3964]
[1724370181210,6.1551,143.5,143.46,24.3964]
[1724370184234,13.1238,143.5,143.46,24.3964]
[1724370185822,16.12324048,143.49,143.46,17.4262]
[1724370186212,6.9691,143.49,143.44,6.9711]